fUST/lending_fUST_20260109
["ID","MTS","AMOUNT","RATE_DAILY","PERIOD"]
[401064898,1767898251428,-1897.2,0.00032,2]
[401064899,1767898251437,-483.77,0.00032,2]
[401064900,1767898251447,-1021.94341535,0.00032,7]
[401064901,1767898251456,-810.2,0.0003201,5]
[401064902,1767898251465,-309.68,0.00032054,32]
[401064903,1767898251473,-1897.2,0.000321,2]
[401064904,1767898251482,-158.09,0.000321,2]
[401064906,1767898251493,-500.0,0.0003216,2]
[401064907,1767898251502,-1897.2,0.000322,2]
[401064909,1767898251511,-1897.2,0.000322,2]
[401064910,1767898251520,-1692.77187826,0.00032202,2]
[401064911,1767898251529,-6100.49946274,0.00032223,2]
[401064912,1767898251539,-600.0,0.00032223,2]
[401064913,1767898251548,-160.0,0.0003224,11]
[401064914,1767898251558,-727.0,0.0003224,11]
[401064915,1767898251567,-7708.90119015,0.00032241,3]
[401064917,1767898251577,-1897.2,0.000323,2]
[401064919,1767898251587,-158.09,0.000323,2]
[401064920,1767898251596,-435.81,0.000323,2]
[401064921,1767898251606,-500.0,0.00032328,7]
[401064922,1767898251615,-500.0,0.00032328,7]
[401064923,1767898251625,-500.0,0.00032328,7]
[401064924,1767898251634,-500.0,0.00032328,7]
[401064925,1767898251645,-500.0,0.00032328,7]
[401064926,1767898251654,-500.0,0.00032328,7]
[401064927,1767898251663,-500.0,0.00032328,7]
[401064928,1767898251672,-500.0,0.00032328,7]
[401064929,1767898251682,-500.0,0.00032328,7]
[401064930,1767898251692,-491.97410906,0.00032328,7]
[401064931,1767898251702,-1897.2,0.000324,2]
[401064932,1767898251711,-1897.2,0.000324,2]
[401064933,1767898251720,-2000.0,0.000324,120]
[401064934,1767898251729,-387.4761861,0.00032438,30]
[401064935,1767898251738,-710.95,0.00032472,30]
[401064936,1767898251747,-153.0,0.000325,30]
[401064937,1767898251757,-1897.2,0.000325,2]
[401064938,1767898251798,-1897.2,0.000325,2]
[401064939,1767898251807,-5000.0,0.00032524,2]
[401064940,1767898251818,-600.0,0.00032556,2]
[401064941,1767898251827,-1897.2,0.000326,2]
[401064942,1767898251837,-158.09,0.000326,2]
[401064943,1767898251846,-309.68,0.00032602,33]
[401064944,1767898251855,-600.9658097,0.00032619,30]
[401064945,1767898251864,-2000.0,0.00032634,7]
[401064946,1767898251873,-198.0,0.00032685,55]
[401064947,1767898251882,-1897.2,0.000327,2]
[401064948,1767898251892,-1897.2,0.000327,2]
[401064949,1767898251902,-339073.51,0.000327,4]
[401064950,1767898251911,-100000.0,0.000327,4]
[401064951,1767898251921,-572.793,0.00032774,33]
[401064952,1767898251930,-800.0,0.00032783,2]
[401064953,1767898251939,-1897.2,0.000328,2]
[401064954,1767898251952,-1897.2,0.000328,2]
[401064955,1767898251962,-435.81,0.000328,2]
[401064956,1767898251971,-1963.69,0.00032876,120]
[401064957,1767898251980,-500.0,0.00032876,120]
[401064958,1767898251991,-500.0,0.00032876,120]
[401064959,1767898252000,-500.0,0.00032876,120]
[401064960,1767898252010,-500.0,0.00032876,120]
[401064961,1767898252022,-500.0,0.00032876,120]
[401064962,1767898252032,-500.0,0.00032876,120]
[401064963,1767898252042,-500.0,0.00032876,120]
[401064964,1767898252052,-500.0,0.00032876,120]
[401064965,1767898252061,-500.0,0.00032876,120]
[401064966,1767898252072,-500.0,0.00032876,120]
[401064967,1767898252082,-500.0,0.00032876,120]
[401064968,1767898252092,-500.0,0.00032876,120]
[401064969,1767898252102,-500.0,0.00032876,120]
[401064970,1767898252111,-500.0,0.00032876,120]
[401064971,1767898252121,-500.0,0.00032876,120]
[401064972,1767898252131,-500.0,0.00032876,120]
[401064973,1767898252140,-500.0,0.00032876,120]
[401064974,1767898252149,-310.65519456,0.00032876,120]
[401064975,1767898252159,-500.0,0.00032877,8]
[401064976,1767898252168,-500.0,0.00032877,8]
[401064977,1767898252177,-16064.24,0.00032877,10]
[401064978,1767898252187,-16064.24,0.00032877,10]
[401064979,1767898252196,-10709.5,0.00032877,10]
[401064980,1767898252206,-625.10994,0.00032877,31]
[401064981,1767898252215,-625.10994,0.00032877,31]
[401064982,1767898252223,-625.10994,0.00032877,31]
[401064983,1767898252233,-625.10994,0.00032877,31]
[401064984,1767898252242,-151.0,0.00032877,31]
[401064985,1767898252252,-151.0,0.00032877,31]
[401064986,1767898252261,-151.0,0.00032877,31]
[401064987,1767898252271,-151.0,0.00032877,31]
[401064988,1767898252280,-151.0,0.00032877,31]
[401064989,1767898252290,-600.0,0.00032888,2]
[401064990,1767898252299,-1215.93141971,0.000329,120]
[401064991,1767898252308,-1897.2,0.000329,2]
[401064992,1767898252317,-158.09,0.000329,2]
[401064993,1767898252327,-1145.67966361,0.000329,120]
[401064994,1767898252336,-151.0,0.000329,31]
[401064995,1767898252345,-151.0,0.000329,7]
[401064996,1767898252354,-151.0,0.000329,31]
[401064997,1767898252363,-151.0,0.000329,31]
[401064998,1767898252372,-151.0,0.000329,31]
[401064999,1767898252381,-151.0,0.000329,31]
[401065000,1767898252390,-153.716458,0.000329,31]
[401065001,1767898252399,-465.027669,0.000329,31]
[401065002,1767898252409,-465.027669,0.000329,31]
[401065003,1767898252418,-465.027669,0.000329,31]
[401065004,1767898252427,-465.027669,0.000329,31]
[401065005,1767898252435,-210.013186,0.000329,31]
[401065006,1767898252445,-151.0,0.000329,31]
[401065007,1767898252453,-151.0,0.000329,31]
[401065008,1767898252462,-151.0,0.000329,31]
[401065009,1767898252471,-151.0,0.000329,31]
[401065010,1767898252480,-232.721507,0.000329,31]
[401065011,1767898252490,-151.0,0.000329,31]
[401065012,1767898252500,-1041.66666667,0.000329,3]
[401065013,1767898252509,-561.81015946,0.00032958,29]
[401065014,1767898252518,-200.0,0.00032979,10]
[401065015,1767898252529,-200.0,0.00032979,10]
[401065016,1767898252537,-200.0,0.00032979,10]
[401065017,1767898252547,-151.0,0.0003298,31]
[401065019,1767898252556,-151.0,0.0003298,31]
[401065021,1767898252564,-153.349181,0.0003298,31]
[401065022,1767898252574,-151.0,0.0003298,31]
[401065023,1767898252583,-151.0,0.0003298,31]
[401065024,1767898252592,-151.0,0.0003298,31]
[401065025,1767898252601,-176.797515,0.0003298,31]
[401065026,1767898252611,-151.0,0.0003298,31]
[401065027,1767898252619,-151.0,0.0003298,31]
[401065028,1767898252629,-151.0,0.0003298,31]
[401065029,1767898252638,-151.0,0.0003298,31]
[401065030,1767898252647,-151.0,0.0003298,31]
[401065031,1767898252656,-151.0,0.0003298,31]
[401065032,1767898252666,-288.938246,0.0003298,31]
[401065033,1767898252676,-412.85,0.0003298,31]
[401065034,1767898252685,-412.85,0.0003298,31]
[401065035,1767898252694,-412.85,0.0003298,31]
[401065036,1767898252703,-151.0,0.0003298,31]
[401065037,1767898252712,-412.85,0.0003298,31]
[401065038,1767898252721,-151.0,0.0003298,31]
[401065039,1767898252730,-151.0,0.0003298,31]
[401065040,1767898252740,-151.0,0.0003298,31]
[401065041,1767898252749,-189.075092,0.0003298,31]
[401065042,1767898252758,-189.075092,0.0003298,31]
[401065043,1767898252767,-189.075092,0.0003298,31]
[401065044,1767898252776,-151.0,0.0003298,7]
[401065045,1767898252785,-189.075092,0.0003298,31]
[401065046,1767898252794,-151.0,0.0003298,7]
[401065047,1767898252804,-151.0,0.0003298,7]
[401065048,1767898252813,-699.163556,0.0003298,31]
[401065049,1767898252822,-699.163556,0.0003298,31]
[401065050,1767898252831,-699.163556,0.0003298,31]
[401065051,1767898252840,-699.163556,0.0003298,31]
[401065052,1767898252849,-151.0,0.0003298,31]
[401065053,1767898252859,-153.60505,0.0003298,31]
[401065054,1767898252868,-160.0,0.00032989,8]
[401065055,1767898252877,-509.0,0.00033,14]
[401065056,1767898252887,-1897.2,0.00033,2]
[401065057,1767898252896,-1897.2,0.00033,2]
[401065058,1767898252905,-50287.45385054,0.00033,20]
[401065059,1767898252914,-1854.894412,0.00033,8]
[401065060,1767898252922,-1019.0,0.00033,7]
[401065061,1767898252932,-151.0,0.00033,31]
[401065062,1767898252941,-151.0,0.00033,31]
[401065063,1767898252955,-151.0,0.00033,31]
[401065064,1767898252964,-151.0,0.00033,31]
[401065065,1767898252974,-151.0,0.00033,31]
[401065066,1767898252984,-179.188398,0.00033,31]
[401065067,1767898252994,-1439.873322,0.00033,31]
[401065068,1767898253003,-1439.873322,0.00033,31]
[401065069,1767898253013,-151.0,0.00033,31]
[401065070,1767898253024,-1439.873322,0.00033,31]
[401065071,1767898253034,-1439.873322,0.00033,31]
[401065072,1767898253044,-262.112916,0.00033,31]
[401065073,1767898253054,-622.20825,0.00033,31]
[401065074,1767898253064,-622.20825,0.00033,31]
[401065075,1767898253074,-622.20825,0.00033,31]
[401065076,1767898253084,-151.0,0.00033,31]
[401065077,1767898253094,-622.20825,0.00033,31]
[401065078,1767898253104,-195.610594,0.00033,31]
[401065079,1767898253115,-195.610594,0.00033,31]
[401065080,1767898253125,-195.610594,0.00033,31]
[401065081,1767898253134,-195.610594,0.00033,31]
[401065082,1767898253144,-303.930909,0.00033,31]
[401065083,1767898253154,-303.930909,0.00033,31]
[401065084,1767898253165,-303.930909,0.00033,31]
[401065085,1767898253176,-303.930909,0.00033,31]
[401065086,1767898253186,-1000.0,0.0003302,8]
[401065087,1767898253197,-5056.07012476,0.00033033,2]
[401065088,1767898253207,-9928.29409022,0.00033033,2]
[401065089,1767898253217,-1000.0,0.0003304,8]
[401065090,1767898253227,-4895.1460992,0.00033054,2]
[401065091,1767898253237,-1000.0,0.0003306,8]
[401065092,1767898253247,-1000.0,0.0003308,8]
[401065093,1767898253256,-1897.2,0.000331,2]
[401065094,1767898253266,-483.77,0.000331,2]
[401065095,1767898253276,-1000.0,0.000331,8]
[401065096,1767898253285,-1000.0,0.0003312,8]
[401065097,1767898253295,-151.0,0.00033131,31]
[401065098,1767898253305,-177.622623,0.00033131,7]
[401065099,1767898253315,-152.589858,0.00033131,31]
[401065100,1767898253324,-151.0,0.00033131,31]
[401065101,1767898253334,-151.0,0.00033131,31]
[401065102,1767898253344,-151.0,0.00033131,31]
[401065103,1767898253354,-465.027669,0.00033131,31]
[401065104,1767898253363,-465.027669,0.00033131,31]
[401065105,1767898253373,-465.027669,0.00033131,31]
[401065106,1767898253384,-465.027669,0.00033131,31]
[401065107,1767898253394,-151.0,0.00033131,31]
[401065108,1767898253404,-151.0,0.00033131,31]
[401065109,1767898253414,-151.0,0.00033131,31]
[401065110,1767898253424,-151.0,0.00033131,31]
[401065111,1767898253434,-625.10994,0.00033131,31]
[401065112,1767898253444,-625.10994,0.00033131,31]
[401065113,1767898253453,-625.10994,0.00033131,31]
[401065114,1767898253463,-625.10994,0.00033131,31]
[401065115,1767898253472,-151.0,0.00033131,31]
[401065116,1767898253481,-151.0,0.00033131,31]
[401065117,1767898253491,-153.670085,0.00033131,31]
[401065118,1767898253500,-151.0,0.00033131,31]
[401065119,1767898253510,-151.0,0.00033131,31]
[401065120,1767898253520,-151.0,0.00033131,31]
[401065121,1767898253530,-151.0,0.00033131,31]
[401065122,1767898253540,-289.370538,0.00033131,31]
[401065123,1767898253549,-289.370538,0.00033131,31]
[401065124,1767898253559,-289.370538,0.00033131,31]
[401065125,1767898253569,-289.370538,0.00033131,31]
[401065126,1767898253579,-388.092813,0.00033131,31]
[401065127,1767898253588,-388.092813,0.00033131,31]
[401065128,1767898253599,-341.324064,0.00033131,28]
[401065129,1767898253608,-388.092813,0.00033131,31]
[401065130,1767898253619,-341.324064,0.00033131,28]
[401065131,1767898253628,-388.092813,0.00033131,31]
[401065132,1767898253638,-341.324064,0.00033131,28]
[401065133,1767898253647,-151.0,0.00033131,31]
[401065134,1767898253658,-341.324064,0.00033131,28]
[401065135,1767898253668,-151.0,0.00033131,31]
[401065136,1767898253678,-151.0,0.00033131,31]
[401065137,1767898253688,-298.474692,0.00033131,31]
[401065138,1767898253698,-184.679172,0.00033131,31]
[401065139,1767898253707,-151.0,0.00033131,31]
[401065140,1767898253717,-151.0,0.00033131,31]
[401065141,1767898253726,-151.0,0.00033131,31]
[401065142,1767898253736,-151.0,0.00033131,31]
[401065143,1767898253746,-151.0,0.00033131,31]
[401065144,1767898253756,-151.0,0.00033131,31]
[401065145,1767898253766,-1222.595979,0.00033131,31]
[401065146,1767898253775,-1222.595979,0.00033131,31]
[401065147,1767898253785,-522.121584,0.00033131,31]
[401065148,1767898253795,-1222.595979,0.00033131,31]
[401065149,1767898253805,-522.121584,0.00033131,31]
[401065150,1767898253816,-1222.595979,0.00033131,31]
[401065151,1767898253826,-522.121584,0.00033131,31]
[401065152,1767898253835,-522.121584,0.00033131,31]
[401065153,1767898253844,-153.151954,0.00033131,31]
[401065154,1767898253854,-168.916695,0.00033131,31]
[401065155,1767898253864,-151.0,0.00033131,31]
[401065156,1767898253873,-248.949077,0.00033131,31]
[401065157,1767898253883,-248.949077,0.00033131,31]
[401065158,1767898253892,-248.949077,0.00033131,31]
[401065159,1767898253901,-151.0,0.00033131,2]
[401065160,1767898253910,-154.500951,0.00033131,30]
[401065161,1767898253920,-248.949077,0.00033131,31]
[401065162,1767898253930,-209.694433,0.00033131,31]
[401065163,1767898253940,-151.0,0.00033131,31]
[401065164,1767898253954,-151.0,0.00033131,31]
[401065165,1767898253964,-151.0,0.00033131,31]
[401065166,1767898253974,-151.0,0.00033131,31]
[401065167,1767898253984,-151.0,0.00033131,31]
[401065168,1767898253994,-151.0,0.00033131,31]
[401065169,1767898254004,-151.0,0.00033131,31]
[401065170,1767898254014,-151.0,0.00033131,31]
[401065171,1767898254025,-191.094302,0.00033131,31]
[401065172,1767898254034,-151.0,0.00033131,31]
[401065173,1767898254043,-191.094302,0.00033131,31]
[401065174,1767898254053,-151.0,0.00033131,31]
[401065175,1767898254063,-151.0,0.00033131,31]
[401065176,1767898254072,-191.094302,0.00033131,31]
[401065177,1767898254082,-182.749737,0.00033131,31]
[401065178,1767898254092,-191.094302,0.00033131,31]
[401065179,1767898254103,-182.749737,0.00033131,31]
[401065180,1767898254113,-182.749737,0.00033131,31]
[401065181,1767898254123,-182.749737,0.00033131,31]
[401065182,1767898254133,-151.0,0.00033131,31]
[401065183,1767898254142,-151.0,0.00033131,31]
[401065184,1767898254151,-151.0,0.00033131,31]
[401065185,1767898254162,-117958.24830097,0.00033133,30]
[401065186,1767898254671,-3e-08,0.00033133,30]
[401065187,1767898254848,-151.0,0.000297,7]
[401065188,1767898254858,-193.620825,0.000297,7]
[401065189,1767898254867,-103.239175,0.000297,7]
[401065190,1767898254879,-90.38165,0.000297,7]
[401065191,1767898254888,-460.35608191,0.00032877,10]
[401065192,1767898254929,-5900.64193889,0.00032877,10]
[401065193,1767898254979,-2563.5819792,0.00032877,10]
[401065194,1767898254998,-2135.77397851,0.00033133,30]
[401065196,1767898350274,500.0,0.00030136,120]
[401065197,1767898350518,500.0,0.00030136,120]
[401065198,1767898350798,348.12,0.00030136,120]
[401065199,1767898354630,175.39,5.812e-05,2]
[401065200,1767898355024,263.09,6.076e-05,2]
[401065201,1767898431204,164.23,5.768e-05,2]
[401065202,1767898431610,246.35,6.031e-05,2]
[401065204,1767898471327,871.2312658,6.106e-05,2]
[401065205,1767898509166,153.78,5.71e-05,2]
[401065206,1767898509551,230.67,5.969e-05,2]
[401065207,1767898570957,-307.56,6.229e-05,2]
[401065208,1767898586243,204.25,6.166e-05,2]
[401065209,1767898589208,-272.33,6.435e-05,2]
[401065210,1767898614360,9455.35,6.185e-05,2]
[401065211,1767898614383,10000.01,6.185e-05,2]
[401065212,1767898614407,10000.01,6.185e-05,2]
[401065213,1767898614433,10000.01,6.185e-05,2]
[401065214,1767898614456,10000.01,6.185e-05,2]
[401065215,1767898614481,10000.01,6.185e-05,2]
[401065216,1767898614503,10000.01,6.185e-05,2]
[401065217,1767898614524,1155.2188734,6.185e-05,2]
[401065218,1767898660088,186.05,6.078e-05,2]
[401065219,1767898660492,248.07,6.343e-05,2]
[401065220,1767898712410,-254.77919843,6.54e-05,2]
[401065221,1767898728047,-310.08,6.607e-05,2]
[401065222,1767898734557,157.63,6.212e-05,2]
[401065223,1767898735049,210.18,6.482e-05,2]
[401065224,1767898748423,-262.72,6.752e-05,2]
[401065225,1767898768426,-315.27,7.022e-05,2]
[401065226,1767898788339,-292.97374773,7.167e-05,2]
[401065227,1767898788370,-500.0,7.167e-05,2]
[401065228,1767898788399,-500.0,7.167e-05,2]
[401065229,1767898788428,-235.90606598,7.167e-05,2]
[401065230,1767898788456,-445.84678615,7.167e-05,2]
[401065231,1767898788484,-195.25052575,7.167e-05,2]
[401065232,1767898788512,-416.13870145,7.167e-05,2]
[401065233,1767898803855,500.0,7.167e-05,2]
[401065234,1767898804262,500.0,7.167e-05,2]
[401065235,1767898804647,500.0,7.167e-05,2]
[401065236,1767898804858,-300.0,7.167e-05,2]
[401065237,1767898805168,500.0,7.167e-05,2]
[401065238,1767898805206,-521.0,7.167e-05,2]
[401065239,1767898805458,500.0,7.167e-05,2]
[401065240,1767898805781,500.0,7.167e-05,2]
[401065241,1767898806160,500.0,7.167e-05,2]
[401065242,1767898806269,190.98,6.49e-05,2]
[401065243,1767898811397,-238.73,6.76e-05,2]
[401065244,1767898811427,-286.48,7.031e-05,2]
[401065245,1767898811454,-500.0,7.167e-05,2]
[401065246,1767898811482,-500.0,7.167e-05,2]
[401065247,1767898811510,-500.0,7.167e-05,2]
[401065248,1767898811539,-500.0,7.167e-05,2]
[401065249,1767898811569,-500.0,7.167e-05,2]
[401065250,1767898811600,-554.02575943,7.167e-05,2]
[401065251,1767898811627,-500.0,7.167e-05,2]
[401065252,1767898811657,-500.0,7.167e-05,2]
[401065253,1767898811685,-341.53848114,7.167e-05,2]
[401065254,1767898811866,-158.46151886,7.167e-05,2]
[401065255,1767898811895,-500.0,7.167e-05,2]
[401065256,1767898811923,-500.0,7.167e-05,2]
[401065257,1767898811949,-500.0,7.167e-05,2]
[401065258,1767898818056,-7810.20769274,7.168e-05,2]
[401065259,1767898818236,-10000.01,7.168e-05,2]
[401065260,1767898818428,-10000.01,7.168e-05,2]
[401065261,1767898818581,-10000.01,7.168e-05,2]
[401065262,1767898834035,-500.0,7.167e-05,2]
[401065263,1767898834067,-500.0,7.167e-05,2]
[401065264,1767898834104,-500.0,7.167e-05,2]
[401065265,1767898834136,-500.0,7.167e-05,2]
[401065266,1767898834167,-500.0,7.167e-05,2]
[401065267,1767898834198,-601.37681651,7.167e-05,2]
[401065268,1767898834229,-500.0,7.167e-05,2]
[401065269,1767898834352,-2797.25636698,7.168e-05,2]
[401065270,1767898834385,-607.50405972,7.168e-05,2]
[401065271,1767898834414,-8785.00188056,7.168e-05,2]
[401065272,1767898840241,-300.0,7.168e-05,2]
[401065273,1767898840270,-300.0,7.168e-05,2]
[401065274,1767898840300,-300.0,7.168e-05,2]
[401065275,1767898840329,-300.0,7.168e-05,2]
[401065276,1767898840358,-300.0,7.168e-05,2]
[401065277,1767898840563,-300.0,7.168e-05,2]
[401065278,1767898840593,-300.0,7.168e-05,2]
[401065279,1767898840624,-300.0,7.168e-05,2]
[401065280,1767898840653,-300.0,7.168e-05,2]
[401065281,1767898840681,-300.0,7.168e-05,2]
[401065282,1767898840709,-300.0,7.168e-05,2]
[401065283,1767898840737,-300.0,7.168e-05,2]
[401065284,1767898840767,-300.0,7.168e-05,2]
[401065285,1767898840796,-300.0,7.168e-05,2]
[401065286,1767898840836,-300.0,7.168e-05,2]
[401065287,1767898840867,-400.01,7.168e-05,2]
[401065288,1767898841083,-199.99,7.168e-05,2]
[401065289,1767898846698,-334.22,7.301e-05,2]
[401065290,1767898852546,500.0,7.167e-05,2]
[401065291,1767898852574,500.0,7.167e-05,2]
[401065292,1767898852604,388.6107728,7.167e-05,2]
[401065293,1767898852636,500.0,7.167e-05,2]
[401065294,1767898852670,500.0,7.167e-05,2]
[401065295,1767898852704,500.0,7.167e-05,2]
[401065296,1767898852732,500.0,7.167e-05,2]
[401065297,1767898852846,500.0,7.167e-05,2]
[401065298,1767898852876,200.0,7.167e-05,2]
[401065299,1767898865998,-381.97,7.571e-05,2]
[401065300,1767898875352,189.35,5.879e-05,2]
[401065301,1767898875745,284.03,6.146e-05,2]
[401065302,1767898876695,378.71,6.413e-05,2]
[401065303,1767898877206,473.39,6.681e-05,2]
[401065304,1767898877494,568.06,6.948e-05,2]
[401065305,1767898877898,662.74,7.215e-05,2]
[401065306,1767898878288,757.42,7.482e-05,2]
[401065307,1767898881809,-852.1,7.75e-05,2]
[401065308,1767898958638,166.63,6.415e-05,2]
[401065309,1767898959036,208.29,6.682e-05,2]
[401065310,1767898959448,249.95,6.949e-05,2]
[401065311,1767898959831,291.61,7.216e-05,2]
[401065312,1767898960225,333.27,7.484e-05,2]
[401065313,1767898960646,374.92,7.751e-05,2]
[401065314,1767899029884,167.84,7.507e-05,2]
[401065315,1767899030275,188.83,7.775e-05,2]
[401065316,1767899197458,-281.71450749,8.279e-05,2]
[401065317,1767899279983,261.02,4.995e-05,2]
[401065318,1767899280339,206.32,4.995e-05,2]
[401065351,1767899431660,-489.0,9.347e-05,2]
[401065354,1767899431671,-62.0,9.347e-05,2]
[401065356,1767899431680,-911.0,9.347e-05,2]
[401065369,1767899431796,-1397.1625447,9.347e-05,2]
[401065371,1767899431805,-276.08021734,9.813e-05,2]
[401065373,1767899431815,-328.89078027,0.00011713,2]
[401065375,1767899431824,-325.77465646,0.00011813,2]
[401065377,1767899431833,-250.0,0.00012351,2]
[401065378,1767899431842,-300.0,0.00013271,2]
[401065386,1767899431991,-300.0,0.00013271,2]
[401065388,1767899432005,-4822.09180123,0.00013272,2]
[401065390,1767899432016,-2704.21360694,0.00013272,2]
[401065478,1767899437686,-5719.44596465,0.00013272,2]
[401065479,1767899437699,-23390.98770448,0.00013272,2]
[401065480,1767899437711,-2748.0000002,0.00013272,2]
[401065481,1767899437740,-10615.2609225,0.00013272,2]
[401065482,1767899437749,-500.0,0.00013272,2]
[401065483,1767899437758,-500.0,0.00013272,2]
[401065484,1767899437768,-500.0,0.00013272,2]
[401065485,1767899437777,-500.0,0.00013272,2]
[401065486,1767899437787,-500.0,0.00013272,2]
[401065487,1767899437796,-500.0,0.00013272,2]
[401065488,1767899437805,-500.0,0.00013272,2]
[401065489,1767899437814,-500.0,0.00013272,2]
[401065490,1767899437823,-500.0,0.00013272,2]
[401065491,1767899437832,-500.0,0.00013272,2]
[401065492,1767899437841,-500.0,0.00013272,2]
[401065493,1767899437850,-18.75202675,0.00013272,2]
[401065494,1767899437862,-481.24797325,0.00013272,2]
[401065495,1767899437871,-500.0,0.00013272,2]
[401065496,1767899437880,-483.0719777,0.00013272,2]
[401065497,1767899437891,-16.9280223,0.00013272,2]
[401065498,1767899437900,-500.0,0.00013272,2]
[401065499,1767899437909,-500.0,0.00013272,2]
[401065500,1767899437919,-469.70114145,0.00013272,2]
[401065501,1767899437928,-260.9245051,0.00013272,2]
[401065502,1767899437939,-239.0754949,0.00013272,2]
[401065503,1767899437949,-500.0,0.00013272,2]
[401065504,1767899437958,-500.0,0.00013272,2]
[401065505,1767899437967,-500.0,0.00013272,2]
[401065506,1767899437976,-500.0,0.00013272,2]
[401065507,1767899437985,-500.0,0.00013272,2]
[401065508,1767899437994,-500.0,0.00013272,2]
[401065509,1767899438003,-500.0,0.00013272,2]
[401065510,1767899438012,-500.0,0.00013272,2]
[401065511,1767899438021,-500.0,0.00013272,2]
[401065512,1767899438031,-500.0,0.00013272,2]
[401065513,1767899438040,-500.0,0.00013272,2]
[401065514,1767899438050,-500.0,0.00013272,2]
[401065515,1767899438060,-500.0,0.00013272,2]
[401065516,1767899438070,-500.0,0.00013272,2]
[401065517,1767899438079,-500.0,0.00013272,2]
[401065518,1767899438090,-500.0,0.00013272,2]
[401065519,1767899438099,-500.0,0.00013272,2]
[401065520,1767899438109,-500.0,0.00013272,2]
[401065521,1767899438118,-592.64132937,0.00013272,2]
[401065522,1767899438128,-500.0,0.00013272,2]
[401065523,1767899438138,-500.0,0.00013272,2]
[401065524,1767899438147,-500.0,0.00013272,2]
[401065525,1767899438157,-500.0,0.00013272,2]
[401065526,1767899438167,-500.0,0.00013272,2]
[401065527,1767899438177,-500.0,0.00013272,2]
[401065528,1767899438187,-500.0,0.00013272,2]
[401065529,1767899438197,-500.0,0.00013272,2]
[401065530,1767899438206,-500.0,0.00013272,2]
[401065531,1767899438216,-500.0,0.00013272,2]
[401065532,1767899438226,-500.0,0.00013272,2]
[401065533,1767899438235,-500.0,0.00013272,2]
[401065534,1767899438245,-500.0,0.00013272,2]
[401065535,1767899438254,-500.0,0.00013272,2]
[401065536,1767899438264,-500.0,0.00013272,2]
[401065537,1767899438277,-500.0,0.00013272,2]
[401065538,1767899438287,-500.0,0.00013272,2]
[401065539,1767899438296,-500.0,0.00013272,2]
[401065540,1767899438306,-500.0,0.00013272,2]
[401065541,1767899438317,-197.82222227,0.00013272,2]
[401065542,1767899438326,-500.0,0.00013272,2]
[401065543,1767899438336,-500.0,0.00013272,2]
[401065544,1767899438348,-500.0,0.00013272,2]
[401065545,1767899438359,-500.0,0.00013272,2]
[401065546,1767899438369,-500.0,0.00013272,2]
[401065547,1767899438379,-500.0,0.00013272,2]
[401065548,1767899438388,-500.0,0.00013272,2]
[401065549,1767899438397,-500.0,0.00013272,2]
[401065550,1767899438406,-500.0,0.00013272,2]
[401065551,1767899438416,-500.0,0.00013272,2]
[401065552,1767899438425,-499.45845722,0.00013273,2]